Workbook

Sheet RECEIVE DATA
A1: 132 | B1: 231 | C1: 21 | D1: 97
E2: Send V_ANODE variable | O2: DIGITAL POTENCIOMETR
A3: 20
D4: 0 | F4: B | N4: 0 | P4: C
O5: ноги 9 и 10
R8: cell_str | S8: 0
E9: Send V_bias variable | R9: cell_y | S9: 20
R10: cell_idy | S10: 1
A11: 21 | D11: 0 | F11: A
D15: 98 | F15: b
H16: 49 | I16: 1 volt
H17: 204 | I17: 1 volt | J17: 51
A18: Шаг А | B18: =H26/0.004902 -> 203.998368 | D18: a | E18: 46
A19: Шаг С | B19: =H27/0.020408 -> 245.00196 | D19: b | E19: 45
A22: НАЧ | B22: =H28/0.004902 -> 1223.990208 | D22: c | E22: 47
A23: КОН | B23: =H29/0.020408 -> 10780.08624 | D23: d | E23: 48
D26: Шаг на первую сетку | H26: 1 | I26: В
D27: Шаг анодного напряжения | H27: 5 | I27: В
D28: Начальное напряжения 1й сетки | H28: 6 | I28: В
D29: Конечное анодное напряжение | H29: 220 | I29: В

Sheet Лист2
A1: q
A2: w

Sheet First check
A1: 26 | C1: 1 | E1: =A1*F34 -> 0.07848426461 | G1: =C1*G35 -> 0.006366580311 | P1: U | Q1: I
A2: 27 | C2: 1 | E2: =A2*F34 -> 0.08150289017 | G2: =C2*G35 -> 0.006366580311 | P2: 0.07848426461 | Q2: 0.006366580311
A3: 3319 | C3: 17 | E3: =A3*F34 -> 10.01881824 | G3: =C3*G35 -> 0.1082318653 | P3: 0.08150289017 | Q3: 0.006366580311
A4: 6711 | C4: 51 | E4: =A4*F34 -> 20.25799615 | G4: =C4*G35 -> 0.3246955959 | P4: 10.01881824 | Q4: 0.1082318653
A5: 10102 | C5: 93 | E5: =A5*F34 -> 30.49415543 | G5: =C5*G35 -> 0.5920919689 | P5: 20.25799615 | Q5: 0.3246955959
A6: 13495 | C6: 138 | E6: =A6*F34 -> 40.73635196 | G6: =C6*G35 -> 0.8785880829 | P6: 30.49415543 | Q6: 0.5920919689
A7: 16888 | C7: 184 | E7: =A7*F34 -> 50.97854849 | G7: =C7*G35 -> 1.171450777 | P7: 40.73635196 | Q7: 0.8785880829
A8: 20283 | C8: 232 | E8: =A8*F34 -> 61.22678227 | G8: =C8*G35 -> 1.477046632 | P8: 50.97854849 | Q8: 1.171450777
A9: 23678 | C9: 281 | E9: =A9*F34 -> 71.47501606 | G9: =C9*G35 -> 1.789009067 | P9: 61.22678227 | Q9: 1.477046632
A10: 27072 | C10: 330 | E10: =A10*F34 -> 81.72023121 | G10: =C10*G35 -> 2.100971503 | P10: 71.47501606 | Q10: 1.789009067
A11: 30469 | C11: 379 | E11: =A11*F34 -> 91.97450225 | G11: =C11*G35 -> 2.412933938 | P11: 81.72023121 | Q11: 2.100971503
A12: 33871 | C12: 429 | E12: =A12*F34 -> 102.2438664 | G12: =C12*G35 -> 2.731262953 | P12: 91.97450225 | Q12: 2.412933938
A13: 37276 | C13: 479 | E13: =A13*F34 -> 112.5222864 | G13: =C13*G35 -> 3.049591969 | P13: 102.2438664 | Q13: 2.731262953
A14: 40685 | C14: 529 | E14: =A14*F34 -> 122.812781 | G14: =C14*G35 -> 3.367920984 | P14: 112.5222864 | Q14: 3.049591969
A15: 44097 | C15: 579 | E15: =A15*F34 -> 133.1123314 | G15: =C15*G35 -> 3.68625 | P15: 122.812781 | Q15: 3.367920984
A16: 47517 | C16: 630 | E16: =A16*F34 -> 143.4360308 | G16: =C16*G35 -> 4.010945596 | P16: 133.1123314 | Q16: 3.68625
A17: 50953 | C17: 680 | E17: =A17*F34 -> 153.8080283 | G17: =C17*G35 -> 4.329274611 | P17: 143.4360308 | Q17: 4.010945596
A18: 54370 | C18: 731 | E18: =A18*F34 -> 164.1226718 | G18: =C18*G35 -> 4.653970207 | P18: 153.8080283 | Q18: 4.329274611
A19: 57795 | C19: 781 | E19: =A19*F34 -> 174.4614644 | G19: =C19*G35 -> 4.972299223 | P19: 164.1226718 | Q19: 4.653970207
A20: 61282 | C20: 832 | E20: =A20*F34 -> 184.9874117 | G20: =C20*G35 -> 5.296994819 | P20: 174.4614644 | Q20: 4.972299223
A21: 64714 | C21: 882 | E21: =A21*F34 -> 195.3473346 | G21: =C21*G35 -> 5.615323834 | P21: 184.9874117 | Q21: 5.296994819
A22: 68162 | C22: 933 | E22: =A22*F34 -> 205.7555556 | G22: =C22*G35 -> 5.94001943 | P22: 195.3473346 | Q22: 5.615323834
A23: 71631 | C23: 984 | E23: =A23*F34 -> 216.2271676 | G23: =C23*G35 -> 6.264715026 | P23: 205.7555556 | Q23: 5.94001943
A24: 75105 | C24: 1034 | E24: =A24*F34 -> 226.7138728 | G24: =C24*G35 -> 6.583044041 | P24: 216.2271676 | Q24: 6.264715026
A25: 78578 | C25: 1085 | E25: =A25*F34 -> 237.1975594 | G25: =C25*G35 -> 6.907739637 | P25: 226.7138728 | Q25: 6.583044041
A26: 82064 | C26: 1136 | E26: =A26*F34 -> 247.7204881 | G26: =C26*G35 -> 7.232435233 | P26: 237.1975594 | Q26: 6.907739637
A27: 85551 | C27: 1187 | E27: =A27*F34 -> 258.2464355 | G27: =C27*G35 -> 7.557130829 | P27: 247.7204881 | Q27: 7.232435233
A28: 89053 | C28: 1238 | E28: =A28*F34 -> 268.8176622 | G28: =C28*G35 -> 7.881826425 | P28: 258.2464355 | Q28: 7.557130829
A29: 92563 | C29: 1289 | E29: =A29*F34 -> 279.4130379 | G29: =C29*G35 -> 8.206522021 | P29: 268.8176622 | Q29: 7.881826425
A30: 96092 | C30: 1340 | E30: =A30*F34 -> 290.0657675 | G30: =C30*G35 -> 8.531217617 | P30: 279.4130379 | Q30: 8.206522021
A31: 99916 | C31: 1391 | E31: =A31*F34 -> 301.6089917 | G31: =C31*G35 -> 8.855913212 | P31: 290.0657675 | Q31: 8.531217617
A32: 103453 | C32: 1442 | E32: =A32*F34 -> 312.2858703 | G32: =C32*G35 -> 9.180608808 | P32: 301.6089917 | Q32: 8.855913212
A33: 106996 | C33: 1493 | E33: =A33*F34 -> 322.9808606 | G33: =C33*G35 -> 9.505304404 | P33: 312.2858703 | Q33: 9.180608808
A34: 110547 | C34: 1544 | E34: 333.7 | F34: =E34/A34 -> 0.003018625562 | G34: 9.83 | H34: ma | P34: 322.9808606 | Q34: 9.505304404
G35: =G34/C34 -> 0.006366580311 | P35: 333.7 | Q35: 9.83
E36: 33.93 | F36: kom
